Workbook

Sheet NSU
B1: Johanna Pirskanen | E1: 3.8.2003 Siilinjärvi
B2: SUPERPESIS | E2: Runkosarja | I2: Kärkilyönnit (KL), pesänvälit | Q2: Runkosarja | U2: Ylempi loppusarja | Z2: Alempi loppusarja | AG2: Arvo-ottelut ja mitalit
B3: Vuosi | C3: Sija | D3: Seura | E3: OTT | F3: KUN | G3: LÖI | H3: TOI | I3: KL | J3: 0 > 1 | K3: 1 > 2 | L3: 2 > 3 | M3: 3 > k | N3: KL-% | P3: LÖI | Q3: TOI | R3: L+T | S3: KL | U3: OTT | V3: KUN | W3: LÖI | X3: TOI | Y3: KL | Z3: OTT | AA3: KUN | AB3: LÖI | AC3: TOI | AD3: KL | AE3: IL | AF3: LL | AG3: Halli | AH3: K | AI3: H | AJ3: P
B4: 2018 | D4: SiiPe | F4: suomensarja
B5: 2019 | D5: SiiPe 2 | F5: suomensarja
B6: 2019 | D6: SiiPe | F6: ykköspesis | Z6: 3 | AA6: 0 | AB6: 0 | AC6: 4 | AD6: 12
B7: 2020 | C7: 11. | D7: SiiPe | E7: 20 | F7: 1 | G7: 2 | H7: 17 | I7: 92 | J7: 83 | K7: 6 | L7: 0 | M7: 3 | N7: 62.6 % | O7: 147
B8: 2021 | C8: 9. | D8: JoMa | E8: 21 | F8: 1 | G8: 3 | H8: 23 | I8: 113 | J8: 98 | K8: 8 | L8: 3 | M8: 4 | N8: 72.0 % | O8: 157 | S8: 8. | AE8: 1
B9: 2022 | C9: 9. | D9: JoMa | E9: 24 | F9: 1 | G9: 1 | H9: 21 | I9: 133 | J9: 120 | K9: 10 | L9: 1 | M9: 2 | N9: 79.6 % | O9: 167 | S9: 5. | AE9: 1
B10: 2023 | C10: 6. | D10: JoMa | E10: 24 | F10: 6 | G10: 1 | H10: 53 | I10: 153 | J10: 126 | K10: 12 | L10: 8 | M10: 7 | N10: 85.0 % | O10: 180 | Q10: 2. | R10: 7. | S10: 1. | U10: 5 | V10: 0 | W10: 1 | X10: 9 | Y10: 28 | AE10: 1
B11: 2024 | C11: 7. | D11: Pesäkarhut | E11: 24 | F11: 1 | G11: 1 | H11: 32 | I11: 114 | J11: 103 | K11: 5 | L11: 4 | M11: 2 | N11: 74.5 % | O11: 153 | Q11: 8. | S11: 5. | U11: 7 | V11: 0 | W11: 0 | X11: 8 | Y11: 40 | AE11: 1
B12: Yhteensä | E12: =SUM(E4:E11) -> 113 | F12: 10 | G12: 8 | H12: 146 | I12: 605 | J12: 530 | K12: 41 | L12: 16 | M12: 18 | N12: =PRODUCT(I12/O12) -> 75.2 % | O12: =SUM(O4:O11) -> 804 | P12: 0-0-0 | Q12: 0-1-0 | R12: 0-0-0 | S12: 1-0-0 | U12: 12 | V12: 0 | W12: 1 | X12: 17 | Y12: 68 | Z12: 3 | AA12: 0 | AB12: 0 | AC12: 4 | AD12: 12 | AE12: 4 | AF12: 0 | AG12: 0 | AH12: 0 | AI12: 0 | AJ12: 0
B13: Pesispörssi | D13: =SUM(F12:H12)+((I12-F12-G12)/3)+(E12/3)+(AE12*25)+(AF12*25)+(AG12*10)+(AH12*25)+(AI12*20)+(AJ12*15) -> 497.3
B15: URA SUPERISSA | E15: OTT | F15: KUN | G15: LÖI | H15: TOI | I15: KL | K15: ka/L | L15: ka/T | M15: ka/KL | N15: KL - % | P15: ENSIMMÄISET
B16: Runkosarja | E16: =PRODUCT(E12) -> 113 | F16: =PRODUCT(F12) -> 10 | G16: =PRODUCT(G12) -> 8 | H16: =PRODUCT(H12) -> 146 | I16: =PRODUCT(I12) -> 605 | K16: =PRODUCT((F16+G16)/E16) -> 0.16 | L16: =PRODUCT(H16/E16) -> 1.29 | M16: =PRODUCT(I16/E16) -> 5.35 | N16: =PRODUCT(N12) -> 75.2 % | O16: =PRODUCT(O12) -> 804 | P16: Ottelu | R16: 31.08. 2019 LaVe - SiiPe 0-2 (0-5, 1-5) | AA16: 1. ottelu | AC16: 16 v 0 kk 28 pv
B17: Ylempi loppusarja | E17: =SUM(U12) -> 12 | F17: =SUM(V12) -> 0 | G17: =SUM(W12) -> 1 | H17: =SUM(X12) -> 17 | I17: =SUM(Y12) -> 68 | K17: =PRODUCT((F17+G17)/E17) -> 0.08 | L17: =PRODUCT(H17/E17) -> 1.42 | M17: =PRODUCT(I17/E17) -> 5.67 | N17: =PRODUCT(I17/O17) -> 75.6 % | O17: 90 | P17: Lyöty | R17: 08.07. 2020 SMJ - SiiPe 2-0 (2-1, 6-4) | AA17: 10. ottelu | AC17: 16 v 11 kk 5 pv
B18: Alempi loppusarja | E18: =PRODUCT(Z12) -> 3 | F18: =PRODUCT(AA12) -> 0 | G18: =PRODUCT(AB12) -> 0 | H18: =PRODUCT(AC12) -> 4 | I18: =PRODUCT(AD12) -> 12 | K18: =PRODUCT((F18+G18)/E18) -> 0.00 | L18: =PRODUCT(H18/E18) -> 1.33 | M18: =PRODUCT(I18/E18) -> 4.00 | N18: 70.6 % | O18: 17 | P18: Tuotu | R18: 31.08. 2019 LaVe - SiiPe 0-2 (0-5, 1-5) | AA18: 1. ottelu | AC18: 16 v 0 kk 28 pv
B19: KAIKKI | E19: =SUM(E16:E18) -> 128 | F19: =SUM(F16:F18) -> 10 | G19: =SUM(G16:G18) -> 9 | H19: =SUM(H16:H18) -> 167 | I19: =SUM(I16:I18) -> 685 | K19: =PRODUCT((F19+G19)/E19) -> 0.15 | L19: =PRODUCT(H19/E19) -> 1.30 | M19: =PRODUCT(I19/E19) -> 5.35 | N19: =PRODUCT(I19/O19) -> 75.2 % | O19: =SUM(O16:O18) -> 911 | P19: Kunnari | R19: 18.07. 2020 SiiPe - Tahko 0-2 (6-10, 0-6) | AA19: 13. ottelu | AC19: 16 v 11 kk 15 pv
B21: Kärkilyöjäkuningatar 2023
B23: Seurat | D23: SiiPe = Siilinjärven Pesis (1987), kasvattajaseura
D24: JoMa = Joensuun Maila (1957)
D25: Pesäkarhut (1985)

Sheet Arvo-ottelut
B1: ITÄ - LÄNSI - KORTTI
B2: Johanna Pirskanen | C2: 3.8.2003 Siilinjärvi
B3: NAISET | C3: Itä - Länsi, tulos | D3: Joukkue | E3: Seura | G3: V | H3: T | I3: H | J3: Up. | K3: Lj. | L3: Palk. | M3: O | N3: K | O3: L | P3: T | Q3: KL | R3: 1 | S3: 2 | T3: 3 | U3: k | V3: KL-% | W3: Pelinjohtaja | X3: Yleisöä
B4: 07.08. 2021 Pori | C4: 0-2 (1-4, 0-3) | D4: Itä | E4: JoMa | I4: 1 | J4: 2p | K4: 5 | M4: 1 | Q4: 3/7 | R4: 3/5 | T4: 0/1 | U4: 0/1 | V4: 42.9 % | W4: Sarita Heikkinen | X4: 3050
B5: 10.07. 2022 Tampere | C5: 0-1 (1-3, 1-1) | D5: Itä | E5: JoMa | I5: 1 | J5: 3k | K5: 1 | M5: 1 | Q5: 3/7 | R5: 3/7 | V5: 42.9 % | W5: Arttu Jurvakainen | X5: 1810
B6: 05.08. 2023 Sotkamo | C6: 0-2 (4-9, 1-5) | D6: Itä | E6: JoMa | I6: 1 | J6: s | K6: 1 | M6: 1 | Q6: 4/6 | R6: 4/6 | V6: 66.7 % | W6: Mattias Kitola | X6: 2780
B7: 29.06. 2024 Jyväskylä | C7: 2-1 (5-4, 2-6, 0-0, 2-1) | D7: Länsi | E7: Pesäkarhut | I7: 1 | J7: 2k | K7: 1 | M7: 1 | Q7: 2/3 | R7: 2/3 | V7: 66.7 % | W7: Juha Antikainen | X7: 3293
B8: Yhteensä | I8: =SUM(I2:I7) -> 4 | M8: =SUM(M2:M7) -> 4 | Q8: 12/23 | R8: 12/21 | T8: 0/1 | U8: 0/1 | V8: =PRODUCT(12/23) -> 52.2 %
B9: Ikä ensimmäisessä ottelussa | C9: 18 v 0 kk 4 pv
B11: B-TYTÖT | C11: Itä - Länsi, tulos | D11: Joukkue | E11: Seura | G11: V | H11: T | I11: H | J11: Up. | K11: Lj. | L11: Palk. | M11: O | N11: K | O11: L | P11: T | Q11: KL | R11: 1 | S11: 2 | T11: 3 | U11: k | V11: KL-% | W11: Pelinjohtaja | X11: Yleisöä
B12: 06.07. 2019 Seinäjoki | C12: 0-1 (4-4, 0-4) | D12: Itä | E12: SiiPe | I12: 1 | K12: jok | M12: 1 | Q12: 4/7 | R12: 4/7 | V12: 57.1 % | W12: Matti Pirinen | X12: 1054
